bitfinex-derivatives/quotes_SOLF0:USTF0_20260203
["timestamp","ask_amount","ask_price","bid_price","bid_amount"]
[1770157631619,3.57539611,99.498,99.405,3.72108721]
[1770157632015,3.57539611,99.486,99.427,9.0639]
[1770157633420,6.73609525,99.5,99.407,141.0243]
[1770157633421,9.0578,99.496,99.437,3.72108721]
[1770157634919,9.0578,99.496,99.438,9.063]
[1770157636617,9.0578,99.496,99.439,3.72108721]
[1770157638517,3.57539611,99.516,99.446,3.72108721]
[1770157639114,3.57539611,99.516,99.461,9.0609]
[1770157640724,3.57539611,99.516,99.469,9.0602]
[1770157641418,3.79416875,99.509,99.434,3.81777678]
[1770157642718,3.79416875,99.486,99.417,3.81777678]
[1770157643523,140.8985,99.497,99.378,204.22]
[1770157643524,3.79416875,99.469,99.407,9.0658]
[1770157643925,3.79416875,99.469,99.4,3.81777678]
[1770157643926,3.79416875,99.469,99.416,3.81777678]
[1770157645726,6.73609525,99.45,99.38,3.81777678]
[1770157645920,140.9664,99.449,99.38,3.81777678]
[1770157646118,6.73609525,99.43,99.38,3.81777678]
[1770157647024,9.0639,99.429,99.38,3.81777678]
[1770157647324,140.9627,99.452,99.336,141.1246]
[1770157647325,10.530264,99.41,99.343,3.81777678]
[1770157647519,10.530264,99.41,99.345,3.81777678]
[1770157647718,3.79416875,99.427,99.35,3.81777678]
[1770157648621,9.0642,99.425,99.362,12.88767678]
[1770157648820,3.79416875,99.409,99.33,3.81777678]
[1770157649021,3.79416875,99.409,99.332,3.81777678]
[1770157650129,3.79416875,99.409,99.352,12.88857678]
[1770157650327,3.79416875,99.409,99.353,3.81777678]
[1770157652131,9.0658,99.408,99.353,3.81777678]
[1770157653025,12.85996875,99.408,99.353,3.81777678]
[1770157654427,3.79416875,99.404,99.336,9.0723]
[1770157654634,3.79416875,99.404,99.337,3.81777678]
[1770157654828,3.79416875,99.389,99.326,3.81777678]
[1770157655833,3.79416875,99.389,99.329,3.81777678]
[1770157656025,3.79416875,99.389,99.312,3.81777678]
[1770157656228,3.79416875,99.389,99.319,3.81777678]
[1770157657429,3.79416875,99.387,99.325,3.81777678]
[1770157657831,3.79416875,99.379,99.325,3.81777678]
[1770157658529,3.79416875,99.379,99.31,3.81777678]
[1770157659732,3.79416875,99.379,99.32,3.81777678]
[1770157660438,3.79416875,99.379,99.329,9.0729]
[1770157661931,141.0239,99.408,99.28,310.82]
[1770157661932,3.79416875,99.369,99.302,3.81777678]
[1770157662231,3.79416875,99.369,99.308,3.81777678]
[1770157662435,3.79416875,99.386,99.308,3.81777678]
[1770157662833,3.79416875,99.402,99.328,3.81777678]
[1770157663629,3.79416875,99.402,99.342,3.81777678]
[1770157663827,3.79416875,99.419,99.342,3.81777678]
[1770157664232,9.065,99.417,99.356,3.81777678]
[1770157664633,12.85916875,99.417,99.356,3.81777678]
[1770157664828,9.0641,99.426,99.368,3.81777678]
[1770157665028,12.85826875,99.426,99.368,3.81777678]
[1770157665230,3.79416875,99.426,99.368,3.81777678]
[1770157666837,3.79416875,99.426,99.371,9.0691]
[1770157667035,3.79416875,99.447,99.372,3.81777678]
[1770157667436,3.79416875,99.447,99.397,9.0667]
[1770157667833,3.79416875,99.447,99.397,12.88447678]
[1770157669337,9.0606,99.465,99.4,3.81777678]
[1770157669539,3.79416875,99.467,99.4,3.81777678]
[1770157670741,3.79416875,99.467,99.417,9.0649]
[1770157674437,3.79416875,99.467,99.4,3.81777678]
[1770157674637,3.50405788,99.465,99.408,3.58242161]
[1770157675037,3.50405788,99.465,99.41,3.52205818]
[1770157675441,3.66199249,99.476,99.41,3.52205818]
[1770157676740,3.66199249,99.476,99.415,12.58715818]
[1770157677142,3.66199249,99.476,99.416,3.52205818]
[1770157677346,9.0586,99.487,99.421,3.52205818]
[1770157677842,3.66199249,99.492,99.436,9.0632]
[1770157678142,3.66199249,99.492,99.437,3.52205818]
[1770157679138,3.66199249,99.49,99.437,3.52205818]
[1770157680744,3.66199249,99.49,99.451,9.0618]
[1770157682940,3.66199249,99.529,99.455,3.52205818]
[1770157683640,3.66199249,99.545,99.477,3.52205818]
[1770157683938,9.0534,99.544,99.493,9.058]
[1770157684141,3.66199249,99.545,99.492,3.52205818]
[1770157684541,3.66199249,99.569,99.507,3.52205818]
[1770157684940,374.76,99.572,99.471,140.9341]
[1770157684941,3.66199249,99.567,99.498,3.52205818]
[1770157685635,3.66199249,99.567,99.504,3.52205818]
[1770157687641,3.66199249,99.555,99.487,3.52205818]
[1770157687844,9.0537,99.541,99.487,3.52205818]
[1770157688046,3.66199249,99.54,99.487,3.52205818]
[1770157688345,9.0538,99.539,99.487,3.52205818]
[1770157689747,3.66199249,99.536,99.471,9.06]
[1770157689949,3.66199249,99.529,99.47,3.52205818]
[1770157690739,9.0553,99.523,99.47,3.52205818]
[1770157691142,3.66199249,99.522,99.47,3.52205818]
[1770157691338,3.66199249,99.522,99.429,306.94]
[1770157691339,3.66199249,99.534,99.463,3.52205818]
[1770157691741,3.66199249,99.55,99.476,3.52205818]
[1770157692749,3.66199249,99.55,99.486,3.52205818]
[1770157694748,3.66199249,99.549,99.486,3.52205818]
[1770157697549,3.66199249,99.549,99.497,3.52205818]
[1770157697952,3.66199249,99.547,99.497,3.52205818]
[1770157698144,3.66199249,99.547,99.483,12.58095818]
[1770157698341,3.66199249,99.547,99.484,3.52205818]
[1770157698546,3.66199249,99.539,99.467,3.52205818]
[1770157698746,3.66199249,99.538,99.467,3.52205818]
[1770157699844,140.8305,99.545,99.421,141.0039]
[1770157699845,3.66199249,99.519,99.45,3.52205818]
[1770157700745,3.46342354,99.501,99.45,3.52205818]
[1770157704446,9.0575,99.499,99.45,3.52205818]
[1770157704648,3.46342354,99.498,99.44,9.0628]
[1770157705758,12.52132354,99.495,99.44,9.0628]
[1770157705945,3.46342354,99.494,99.44,9.0628]
[1770157706554,9.058,99.493,99.44,9.0628]
[1770157706855,3.46342354,99.492,99.44,9.0628]
[1770157707056,3.46342354,99.492,99.45,9.0619]
[1770157707258,140.8135,99.557,99.421,141.0039]
[1770157707259,3.46342354,99.507,99.451,3.80090726]
[1770157708754,3.46342354,99.507,99.459,9.061]
[1770157710560,3.46342354,99.507,99.459,12.86190726]
[1770157712754,3.46342354,99.503,99.451,9.0618]
[1770157713954,140.8608,99.523,99.444,3.80090726]
[1770157713955,3.46342354,99.492,99.444,3.80090726]
[1770157714763,9.0582,99.491,99.444,3.80090726]
[1770157718366,2.35580016,99.48,99.444,3.80090726]
[1770157720262,2.35580016,99.5,99.449,3.80090726]
[1770157720469,2.35580016,99.51,99.449,3.80090726]
[1770157720865,2.35580016,99.51,99.451,3.80090726]
[1770157721668,2.35580016,99.5,99.457,3.80090726]
[1770157722273,2.35580016,99.5,99.458,9.0612]
[1770157723069,2.35580016,99.5,99.458,12.86210726]
[1770157723575,2.35580016,99.5,99.46,12.86190726]
[1770157724472,9.0566,99.509,99.46,12.86190726]
[1770157724668,9.0566,99.509,99.462,9.0608]
[1770157725376,3.46342354,99.51,99.463,3.80090726]
[1770157725670,3.46342354,99.51,99.437,140.9813]
[1770157725671,3.46342354,99.527,99.471,3.80090726]
[1770157726671,9.0551,99.526,99.473,9.0598]
[1770157726871,9.0551,99.526,99.474,3.80090726]
[1770157727074,9.05045002,99.574,99.449,140.9651]
[1770157727075,3.46342354,99.554,99.486,3.80090726]
[1770157727279,3.46342354,99.554,99.513,9.0561]
[1770157727578,9.0515,99.565,99.513,9.0561]
[1770157727778,3.46342354,99.57,99.515,12.85690726]
[1770157728178,3.46342354,99.59,99.527,3.80090726]
[1770157728477,3.46342354,99.59,99.529,3.80090726]
[1770157729175,369.6,99.612,99.547,3.80090726]
[1770157729379,369.6,99.612,99.538,140.8389]
[1770157729380,3.46342354,99.647,99.579,3.80090726]
[1770157729783,3.46342354,99.638,99.58,9.0501]
[1770157729979,3.46342354,99.638,99.579,3.80090726]
[1770157730281,3.46342354,99.655,99.596,3.80090726]
[1770157730982,3.66954699,99.649,99.561,3.51445421]
[1770157731179,3.66954699,99.649,99.529,140.8516]
[1770157731180,3.66954699,99.678,99.595,140.7584]
[1770157731380,3.66954699,99.676,99.599,3.51445421]
[1770157731783,3.66954699,99.676,99.608,3.51445421]
[1770157732784,3.66954699,99.676,99.57,6.72709011]
[1770157732785,3.66954699,99.669,99.585,3.51445421]
[1770157732984,3.66954699,99.649,99.585,3.51445421]
[1770157733389,3.66954699,99.647,99.585,3.51445421]
[1770157733584,3.66954699,99.641,99.568,3.51445421]
[1770157734389,3.66954699,99.639,99.568,3.51445421]
[1770157734593,3.66954699,99.637,99.568,3.51445421]
[1770157735289,370.54,99.636,99.568,3.51445421]
[1770157735789,3.51649263,99.635,99.571,3.72378638]
[1770157735985,374.41649263,99.652,99.576,3.72378638]
[1770157736186,3.51649263,99.651,99.576,3.72378638]
[1770157736391,370.96,99.65,99.576,3.72378638]
[1770157736591,374.47649263,99.65,99.576,3.72378638]
[1770157736781,3.51649263,99.649,99.576,3.72378638]
[1770157736982,3.51649263,99.649,99.582,3.72378638]
[1770157737591,371.52,99.648,99.582,3.72378638]
[1770157738190,375.03649263,99.648,99.582,3.72378638]
[1770157738895,3.51649263,99.647,99.582,3.72378638]
[1770157739285,375.75649263,99.646,99.582,3.72378638]
[1770157739588,3.51649263,99.645,99.582,3.72378638]
[1770157741588,3.51649263,99.645,99.586,3.72378638]
[1770157741788,373.44,99.644,99.586,3.72378638]
[1770157742186,3.51649263,99.645,99.586,3.72378638]
[1770157742389,3.51649263,99.645,99.572,140.7907]
[1770157742390,373.6,99.644,99.591,3.72378638]
[1770157742989,373.6,99.644,99.559,140.8096]
[1770157742990,3.51649263,99.643,99.573,3.72378638]
[1770157743401,290.48,99.642,99.573,3.72378638]
[1770157743994,293.99649263,99.642,99.573,3.72378638]
[1770157744202,293.99649263,99.642,99.531,140.8484]
[1770157744203,3.51649263,99.619,99.556,3.72378638]
[1770157744402,6.72709011,99.62,99.531,140.8484]
[1770157744403,3.51649263,99.617,99.54,3.72378638]
[1770157744700,3.51649263,99.605,99.54,3.72378638]
[1770157744904,3.51649263,99.605,99.517,140.8686]
[1770157744905,3.51649263,99.605,99.523,3.72378638]
[1770157745104,3.51649263,99.599,99.523,3.72378638]
[1770157745599,3.51649263,99.579,99.523,3.72378638]
[1770157745999,6.71559695,99.58,99.502,3.72378638]
[1770157746000,3.51649263,99.565,99.502,3.72378638]
[1770157746200,3.51649263,99.565,99.475,140.9277]
[1770157746201,6.71559695,99.58,99.505,3.72378638]
[1770157746398,3.51649263,99.578,99.505,3.72378638]
[1770157746599,3.51649263,99.578,99.519,9.0556]
[1770157746808,3.51649263,99.578,99.507,140.8827]
[1770157746809,3.51649263,99.59,99.52,3.72378638]
[1770157747100,3.51649263,99.59,99.494,140.9004]
[1770157747101,3.51649263,99.587,99.502,3.72378638]
[1770157747400,3.51649263,99.567,99.502,3.72378638]
[1770157747801,9.0525,99.554,99.502,3.72378638]
[1770157748001,6.71559695,99.55,99.502,3.72378638]
[1770157748905,6.71559695,99.55,99.468,3.72378638]
[1770157749306,374.94,99.549,99.468,3.72378638]
[1770157749799,374.94,99.549,99.467,140.9399]
[1770157749800,3.51649263,99.548,99.483,3.72378638]
[1770157750401,3.51649263,99.568,99.494,3.72378638]
[1770157750603,3.51649263,99.568,99.498,140.8953]
[1770157750797,3.51649263,99.568,99.506,3.72378638]
[1770157751309,3.51649263,99.568,99.513,12.77998638]
[1770157751807,9.0503,99.579,99.495,140.9]
[1770157751808,3.51649263,99.589,99.514,3.72378638]
[1770157752108,3.51649263,99.589,99.533,3.72378638]
[1770157753299,3.51649263,99.586,99.523,9.0552]
[1770157753606,3.51649263,99.586,99.495,140.9]
[1770157753607,3.51649263,99.579,99.495,3.72378638]
[1770157753806,3.51649263,99.569,99.495,3.72378638]
[1770157754003,3.51649263,99.561,99.495,3.72378638]
[1770157754211,3.51649263,99.58,99.505,3.72378638]
[1770157754508,283.1,99.579,99.505,3.72378638]
[1770157754704,283.1,99.579,99.527,9.0549]
[1770157755110,283.1,99.579,99.527,12.77868638]
[1770157756107,3.51649263,99.576,99.515,9.056]
[1770157756308,3.51649263,99.576,99.509,3.72378638]
[1770157756507,3.51649263,99.574,99.509,3.72378638]
[1770157757208,3.51649263,99.559,99.495,9.0578]
[1770157757413,6.71559695,99.54,99.485,3.72378638]
[1770157757612,377.74,99.554,99.497,3.72378638]
[1770157757911,9.0522,99.558,99.497,3.72378638]
[1770157757912,377.7,99.553,99.497,3.72378638]
[1770157758710,9.0511,99.569,99.499,3.72378638]
[1770157758909,378.2,99.568,99.499,3.72378638]
[1770157759107,381.71649263,99.568,99.499,3.72378638]
[1770157759310,3.51649263,99.568,99.517,9.0558]
[1770157760416,3.51649263,99.568,99.499,3.72378638]
[1770157761511,9.0514,99.566,99.512,9.0563]
[1770157761916,3.71949821,99.565,99.499,3.72378638]
[1770157762119,9.0535,99.544,99.487,3.51671136]
[1770157762719,12.77319821,99.541,99.489,9.0584]
[1770157764016,3.71949821,99.529,99.451,3.51671136]
[1770157764218,3.71949821,99.529,99.462,3.51671136]
[1770157764817,3.71949821,99.519,99.463,9.0607]
[1770157765119,3.71949821,99.519,99.462,3.51671136]
[1770157765320,379.46,99.518,99.462,3.51671136]
[1770157765716,388.5158,99.518,99.462,3.51671136]
[1770157765917,3.71949821,99.517,99.462,3.51671136]
[1770157766119,3.71949821,99.537,99.462,3.51671136]
[1770157766322,3.71949821,99.526,99.463,9.0607]
[1770157766722,9.056,99.516,99.462,3.51671136]
[1770157768625,12.77549821,99.516,99.462,3.51671136]
[1770157769420,12.77549821,99.516,99.403,141.0296]
[1770157769421,3.71949821,99.559,99.469,3.51671136]
[1770157769623,379.34,99.542,99.469,3.51671136]
[1770157770823,9.0537,99.541,99.484,9.0588]
[1770157771823,9.054,99.538,99.484,9.0588]
[1770157773424,380.98,99.537,99.484,9.0588]
[1770157774336,381.44,99.536,99.484,9.0588]
[1770157775525,12.77349821,99.538,99.484,3.51671136]
[1770157775526,382.06,99.535,99.484,3.51671136]
[1770157776825,382.06,99.535,99.5,9.0574]
[1770157777330,3.71949821,99.538,99.5,9.0574]
[1770157777331,386.77949821,99.538,99.5,9.0574]
[1770157778033,383.46,99.537,99.492,9.0581]
[1770157779133,387.17949821,99.537,99.492,9.0581]
[1770157779339,384.22,99.536,99.492,9.0581]
[1770157780338,3.71949821,99.537,99.492,9.0581]
[1770157783038,386.12,99.536,99.492,9.0581]
[1770157783439,386.12,99.536,99.5,9.0574]
[1770157783636,386.12,99.536,99.501,3.51671136]
[1770157784834,386.12,99.536,99.505,9.0569]
[1770157785435,3.71949821,99.554,99.513,9.0562]
[1770157785632,387.38,99.553,99.513,9.0562]
[1770157786335,3.71949821,99.554,99.513,9.0562]
[1770157788839,3.71949821,99.552,99.504,9.057]
[1770157789243,3.71949821,99.552,99.489,3.51671136]
[1770157789442,3.71949821,99.543,99.493,9.0579]
[1770157790046,3.71949821,99.533,99.483,9.0589]
[1770157791742,3.51008301,99.531,99.483,9.0589]
[1770157792547,3.51008301,99.531,99.491,9.0582]
[1770157793147,3.51008301,99.548,99.492,3.55637546]
[1770157793644,3.51008301,99.546,99.492,12.61447546]
[1770157794447,3.51008301,99.544,99.492,12.61447546]
[1770157794847,3.51008301,99.543,99.492,12.61447546]
[1770157795849,3.51008301,99.543,99.492,3.55637546]
[1770157796747,3.51008301,99.543,99.498,9.0575]
[1770157797548,140.7851,99.577,99.467,140.9397]
[1770157797549,3.46466739,99.541,99.487,9.0585]
[1770157797751,3.46466739,99.539,99.487,9.0585]
[1770157797953,3.46466739,99.539,99.476,3.62545526]
[1770157798253,3.46466739,99.537,99.476,3.62545526]
[1770157798749,3.46466739,99.531,99.477,9.0594]
[1770157798950,3.46466739,99.529,99.477,9.0594]
[1770157799151,3.46466739,99.529,99.476,3.62545526]
[1770157799747,3.46466739,99.529,99.485,9.0587]
[1770157801050,6.71559695,99.55,99.493,3.62545526]
[1770157801347,3.46466739,99.548,99.493,3.62545526]
[1770157801750,3.46466739,99.546,99.493,3.62545526]
[1770157802347,3.46466739,99.546,99.421,24.80076163]
[1770157802348,3.46466739,99.533,99.478,3.62545526]
[1770157802550,3.46466739,99.529,99.478,3.62545526]
[1770157802947,3.46466739,99.527,99.478,3.62545526]
[1770157803149,6.71559695,99.51,99.46,3.62545526]
[1770157803350,3.46466739,99.527,99.46,3.62545526]
[1770157803749,6.71559695,99.51,99.46,3.62545526]
[1770157804351,394.0,99.528,99.436,140.9838]
[1770157804352,3.46466739,99.516,99.463,3.62545526]
[1770157804741,6.72679174,99.53,99.463,3.62545526]
[1770157804942,3.46466739,99.522,99.475,9.0596]
[1770157805749,9.0544,99.534,99.48,3.62545526]
[1770157806650,9.0544,99.534,99.482,9.059]
[1770157807554,12.51906739,99.534,99.482,9.059]
[1770157809054,3.46466739,99.534,99.49,9.0583]
[1770157809254,3.46466739,99.549,99.491,3.62545526]
[1770157810657,3.46466739,99.549,99.476,140.9269]
[1770157810658,3.46466739,99.589,99.515,3.62545526]
[1770157811146,3.46466739,99.588,99.532,3.62545526]
[1770157811351,6.72679174,99.62,99.532,3.62545526]
[1770157811352,294.76,99.603,99.532,3.62545526]
[1770157811553,3.46466739,99.602,99.551,3.62545526]
[1770157812258,149.81308113,99.63,99.525,140.8566]
[1770157812259,3.46466739,99.623,99.561,3.62545526]
[1770157812652,3.46466739,99.619,99.542,3.62545526]
[1770157813655,3.46466739,99.606,99.542,12.67895526]
[1770157813954,3.46466739,99.599,99.542,3.62545526]
[1770157814354,3.46466739,99.596,99.542,3.62545526]
[1770157814856,3.46466739,99.596,99.532,9.0545]
[1770157815061,9.05,99.581,99.526,3.62545526]
[1770157815359,3.46466739,99.596,99.526,3.62545526]
[1770157815550,3.46466739,99.595,99.526,3.62545526]
[1770157816364,3.46466739,99.604,99.541,3.62545526]
[1770157816749,3.46466739,99.602,99.546,9.0531]
[1770157817053,396.52,99.605,99.541,3.62545526]
[1770157817054,3.46466739,99.599,99.541,3.62545526]
[1770157817254,3.46466739,99.597,99.506,3.62545526]
[1770157817450,9.0496,99.586,99.524,3.62545526]
[1770157817654,3.46466739,99.585,99.524,3.62545526]
[1770157818663,3.46466739,99.585,99.525,9.055]
[1770157819158,397.22,99.596,99.535,3.62545526]
[1770157819358,3.46466739,99.602,99.535,3.62545526]
[1770157820857,3.46466739,99.602,99.544,9.0533]
[1770157821363,3.44359053,99.6,99.535,3.62545526]
[1770157822362,3.44359053,99.596,99.538,9.0539]
[1770157822663,3.44359053,99.596,99.539,3.64895551]
[1770157823161,3.44359053,99.596,99.543,9.0535]
[1770157823659,3.44359053,99.596,99.543,12.70245551]
[1770157826066,3.44359053,99.596,99.543,3.64895551]
[1770157826659,9.0491,99.592,99.543,3.64895551]
[1770157827057,12.49269053,99.592,99.543,3.64895551]
[1770157829566,3.44359053,99.592,99.543,3.64895551]
[1770157829768,3.44359053,99.592,99.499,30.21]
[1770157829769,3.44359053,99.569,99.5,3.64895551]
[1770157830365,3.44359053,99.567,99.5,3.64895551]
[1770157830766,3.44359053,99.567,99.502,3.64895551]
[1770157831164,3.44359053,99.584,99.527,3.64895551]
[1770157831471,3.44359053,99.582,99.527,3.64895551]
[1770157832767,3.44359053,99.582,99.506,140.8843]
[1770157832768,3.44359053,99.582,99.511,3.64895551]
[1770157832968,3.44359053,99.569,99.511,3.64895551]
[1770157833370,9.0514,99.566,99.511,3.64895551]
[1770157833770,3.44359053,99.565,99.511,3.64895551]
[1770157834774,3.44359053,99.565,99.513,9.0562]
[1770157835065,3.44359053,99.565,99.514,3.64895551]
[1770157835372,3.44359053,99.565,99.526,9.055]
[1770157837775,3.44359053,99.576,99.526,9.055]
[1770157838679,3.44359053,99.576,99.533,9.0543]
[1770157838868,18.0886,99.645,99.512,140.8762]
[1770157838869,3.44359053,99.594,99.534,3.64895551]
[1770157839270,3.44359053,99.594,99.556,9.0522]
[1770157839468,198.18679174,99.61,99.556,12.70115551]
[1770157839672,3.44359053,99.609,99.556,12.70115551]
[1770157839869,12.48819053,99.641,99.579,3.64895551]
[1770157840674,12.48899053,99.633,99.579,3.64895551]
[1770157841276,12.48899053,99.633,99.58,9.05]
[1770157841674,3.44359053,99.633,99.581,3.64895551]
[1770157842080,3.44359053,99.633,99.583,9.0498]
[1770157842279,3.44359053,99.633,99.581,3.64895551]
[1770157843782,9.0456,99.63,99.581,3.64895551]
[1770157843977,3.44359053,99.629,99.571,9.0509]
[1770157844481,9.0458,99.627,99.576,9.0504]
[1770157845281,3.44359053,99.629,99.585,9.0496]
[1770157846183,3.44359053,99.662,99.59,3.64895551]
[1770157846781,3.44359053,99.656,99.577,3.64895551]
[1770157846976,3.44359053,99.649,99.577,3.64895551]
[1770157847179,3.44359053,99.645,99.577,3.64895551]
[1770157848684,9.0457,99.629,99.577,3.64895551]
[1770157849477,9.0457,99.629,99.573,9.0507]
[1770157849478,3.44359053,99.628,99.573,9.0507]
[1770157850380,3.44359053,99.628,99.573,12.69965551]
[1770157850985,9.0462,99.624,99.574,3.76403099]
[1770157851684,9.0462,99.624,99.575,12.81453099]
[1770157851882,3.66475914,99.618,99.556,3.76403099]
[1770157852085,140.6872,99.646,99.539,3.76403099]
[1770157852086,3.66475914,99.609,99.539,3.76403099]
[1770157852289,3.66475914,99.609,99.544,3.76403099]
[1770157852691,9.048,99.604,99.544,3.76403099]
[1770157852991,3.66475914,99.609,99.546,9.0531]
[1770157854489,9.0479,99.605,99.55,9.0528]
[1770157855082,9.0479,99.605,99.494,140.9016]
[1770157855083,3.60317966,99.639,99.567,3.63299182]
[1770157855287,3.60317966,99.639,99.571,3.63299182]
[1770157855690,3.60317966,99.639,99.591,9.0491]
[1770157855890,3.60317966,99.639,99.571,3.63299182]
[1770157856293,3.60317966,99.639,99.572,9.0508]
[1770157856294,9.0449,99.638,99.572,9.0508]
[1770157856489,9.0449,99.638,99.573,3.63299182]
[1770157856689,400.94,99.637,99.573,3.63299182]
[1770157857692,9.0455,99.631,99.574,9.0506]
[1770157857987,9.0455,99.631,99.575,3.63299182]
[1770157858391,3.60317966,99.63,99.575,3.63299182]
[1770157858788,3.60317966,99.621,99.575,3.63299182]
[1770157859091,3.60317966,99.621,99.562,9.0517]
[1770157859388,9.0465,99.62,99.562,9.0517]
[1770157859586,12.64967966,99.62,99.562,9.0517]
[1770157860181,12.64967966,99.62,99.564,9.0515]
[1770157860381,3.60317966,99.619,99.565,3.63299182]
[1770157860587,140.692,99.643,99.544,3.63299182]
[1770157860588,3.60317966,99.609,99.544,3.63299182]
[1770157861492,3.60317966,99.607,99.544,3.63299182]
[1770157861688,3.60317966,99.602,99.545,9.0533]
[1770157862688,9.0483,99.601,99.545,9.0533]
[1770157862889,3.60317966,99.6,99.545,9.0533]
[1770157864487,3.60317966,99.6,99.55,9.0528]
[1770157864694,9.0478,99.605,99.551,3.63299182]
[1770157865084,12.65097966,99.605,99.551,3.63299182]
[1770157865689,12.65097966,99.605,99.552,9.0526]
[1770157866290,407.65604188,99.61,99.553,3.63299182]
[1770157866492,400.94,99.61,99.553,3.63299182]
[1770157866894,12.64827966,99.636,99.57,3.63299182]
[1770157867694,3.60317966,99.636,99.571,3.63299182]
[1770157868403,9.0428,99.661,99.6,3.63299182]
[1770157868693,3.60317966,99.672,99.6,3.63299182]
[1770157869285,3.60317966,99.672,99.617,3.63299182]
[1770157869485,9.0411,99.68,99.617,3.63299182]
[1770157869685,3.60317966,99.679,99.6,3.63299182]
[1770157869888,3.60317966,99.639,99.58,3.63299182]
[1770157870083,3.60317966,99.639,99.543,140.8312]
[1770157870084,3.60317966,99.638,99.555,3.63299182]
[1770157870891,3.60317966,99.638,99.582,9.0499]
[1770157871288,3.60317966,99.638,99.575,3.63299182]
[1770157871894,3.60317966,99.638,99.584,9.0497]
[1770157873089,3.60317966,99.656,99.59,3.63299182]
[1770157875799,3.60317966,99.656,99.603,9.0479]
[1770157875800,9.0433,99.655,99.603,9.0479]
[1770157876600,3.60317966,99.656,99.603,9.0479]
[1770157876903,3.60317966,99.698,99.611,3.63299182]
[1770157877505,3.60317966,99.693,99.638,9.0448]
[1770157877898,407.57604188,99.7,99.595,140.7587]
[1770157877899,3.60317966,99.681,99.612,3.63299182]
[1770157878099,3.60317966,99.679,99.612,3.63299182]
[1770157878599,3.60317966,99.679,99.586,3.63299182]
[1770157879702,3.60317966,99.659,99.61,9.0473]
[1770157880705,9.0432,99.657,99.61,9.0473]
[1770157882498,6.71604188,99.68,99.573,3.63756118]
[1770157882499,3.59513012,99.634,99.573,3.63756118]
[1770157883103,3.59513012,99.634,99.588,9.0493]
[1770157883499,3.59513012,99.634,99.573,3.63756118]
[1770157884011,12.64033012,99.634,99.588,9.0493]
[1770157884507,3.59513012,99.634,99.588,9.0493]
[1770157885310,9.0454,99.633,99.579,9.0501]
[1770157885608,9.0454,99.633,99.58,3.63756118]
[1770157887107,9.0454,99.633,99.583,9.0498]
[1770157887407,3.59513012,99.634,99.583,9.0498]
[1770157887908,3.59513012,99.634,99.571,9.0508]
[1770157888307,400.82,99.637,99.563,3.63756118]
[1770157888308,3.59513012,99.615,99.563,3.63756118]
[1770157888499,3.59513012,99.615,99.566,9.0513]
[1770157889109,3.59513012,99.615,99.566,12.68886118]
[1770157889612,3.59513012,99.634,99.575,3.63756118]
[1770157890808,9.046,99.625,99.579,9.0501]
[1770157892512,3.59513012,99.634,99.579,9.0501]
[1770157892513,12.64043012,99.634,99.588,9.0493]
[1770157892810,3.59513012,99.634,99.579,3.63756118]
[1770157893014,3.59513012,99.634,99.588,9.0494]
[1770157894014,9.0454,99.632,99.588,9.0494]
[1770157894906,3.59513012,99.634,99.58,9.0501]
[1770157894907,9.0461,99.625,99.58,9.0501]
[1770157895506,3.59513012,99.633,99.542,3.63756118]
[1770157895817,3.59513012,99.619,99.544,3.63756118]
[1770157896715,3.59513012,99.619,99.543,140.8324]
[1770157896716,9.0468,99.617,99.564,9.0515]
[1770157897513,9.0468,99.617,99.571,9.0509]
[1770157897718,12.64193012,99.617,99.571,9.0509]
[1770157900115,3.59513012,99.613,99.564,3.63756118]
[1770157900721,3.59513012,99.613,99.573,9.0507]
[1770157904528,3.59513012,99.613,99.564,3.63756118]
[1770157905619,3.59513012,99.645,99.574,3.63756118]
[1770157906321,3.59513012,99.645,99.597,3.63756118]
[1770157907626,3.59513012,99.645,99.566,140.7992]
[1770157907627,3.59513012,99.642,99.591,9.049]
[1770157907823,3.59513012,99.642,99.582,3.63756118]
[1770157908426,3.59513012,99.629,99.582,3.63756118]
[1770157908829,3.59513012,99.629,99.556,3.63756118]
[1770157909728,12.64093012,99.628,99.574,9.0506]
[1770157909929,3.59513012,99.627,99.571,3.63756118]
[1770157910332,9.0468,99.617,99.571,3.63756118]
[1770157910528,3.59513012,99.616,99.566,3.8005536]
[1770157911133,3.51046997,99.589,99.527,3.8005536]
[1770157912026,3.51046997,99.589,99.53,3.8005536]
[1770157912230,3.51046997,99.61,99.541,3.8005536]
[1770157912733,3.51046997,99.609,99.541,3.8005536]
[1770157913326,7.51282636,99.624,99.548,3.8005536]
[1770157913525,3.51046997,99.625,99.554,3.8005536]